{"text_format":"1","workbook":"xlsx","n_sheets":12,"sheets":["м 18-29","ж 18-29","м 30-39","ж 30-39","м 40-49","ж 40-49","м 50-59","ж 50-59","м 60-69","ж 60-69","м 70 и ст","ж 70 и ст"],"not_rendered":{"charts":0,"images":0,"macros":0,"external_links":0,"defined_names":0,"comments":0,"pivot_tables":0},"unopened":[],"bounds":{"document_bytes":16777216,"sheet_cells":100000,"rows_first":2000,"rows_last":500,"rows_between":2000,"halvings":0,"cell_chars":16384,"cell_head_chars":4096},"cells_cut":0,"cells_raw":0,"read":"whole","date_system":"1900"}

{"sheet":"м 18-29","index":0,"n_rows":12,"n_cols":22,"rows_kept":12,"cut":false,"hidden":false,"merged":[[10,16,10,18],[10,19,10,21],[8,0,8,7],[5,16,5,21],[6,16,6,18],[6,19,6,21],[9,16,9,21],[1,16,1,21],[2,16,2,18],[2,19,2,21],[1,11,1,13],[1,5,1,7],[1,8,1,10],[1,0,2,0],[1,1,2,1],[1,3,2,3],[1,2,2,2],[0,0,0,15],[1,14,2,14],[1,15,2,15],[1,4,2,4]]}
["Итоговый протокол видов испытаний (тестов) и  нормативов Всероссийского физкультурно-спортивного комплекса «Готов к труду и обороне» (ГТО) среди жителей Култаевского сельского поселения  28.06.2015.\nVI. СТУПЕНЬ (Мужчины возрастная группа от 18 до 29 лет) "]
["№\n п/п","Ф.И.О.","Должность.                             Место работы ","Номер участника","Возраст","Прыжок в длину с места толчком двумя ногами (см)",null,null," Подтягивание  из виса на высокой перекладине         (кол-во раз)",null,null,"Бег на 3 км (мин, с) ",null,null,"Сумма мест","Итоговое место","прыжок"]
[null,null,null,null,null,"Рез-т","Место","Значок","Рез-т","Место","Значок","Рез-т","Место","Значок",null,null,"18-24",null,null,"25-29"]
[1,"Сюзев Егор Александрович",null,18,28,272,1,"золото",20,1,"золото",11.3,1,"золото",3,1,215,230,240,225,230,240]
[2,"Щербаков Юрий Валерьевич",null,22,19,250,2,"золото",13,3,"золото",15.43,4,"нет",9,3]
[3,"Ямщиков Илья Анатольевич",null,11,22,238,3,"серебро",16,2,"золото",12.51,2,"серебро",7,2,"подтягивание"]
[4,"Собянин Сергей Юрьевич",null,20,21,235,4,"серебро",8,4,"нет",15.18,3,"нет",11,4,"18-24",null,null,"25-29"]
[5,"Емельянов Владимир Анатольевич","Дом спорта",8,21,213,5,"нет",6,5,"нет",18.079999999999998,5,"нет",15,5,9,10,13,9,10,12]
["Главный судья                                                                                                          С.В. Пономарев"]
[null,null,null,null,null,null,null,null,null,null,null,null,null,null,null,null,"3 км"]
[null,null,null,null,null,null,null,null,null,null,null,null,null,null,null,null,"18-24",null,null,"25-29"]
[null,null,null,null,null,null,null,null,null,null,null,null,null,null,null,null,14,13.3,12.3,14.5,13.5,12.5]

{"sheet":"ж 18-29","index":1,"n_rows":13,"n_cols":20,"rows_kept":13,"cut":false,"hidden":false,"merged":[[1,11,1,13],[6,16,6,18],[12,0,12,7],[1,4,2,4],[0,0,0,15],[1,0,2,0],[1,1,2,1],[1,2,2,2],[1,3,2,3],[1,5,1,7],[1,8,1,10],[6,19,6,21],[1,14,2,14],[1,15,2,15],[9,16,9,21],[10,16,10,18],[10,19,10,21],[1,16,1,21],[2,16,2,18],[2,19,2,21],[5,16,5,21]]}
["Итоговый протокол видов испытаний (тестов) и  нормативов Всероссийского физкультурно-спортивного комплекса «Готов к труду и обороне» (ГТО) cреди жителей Култаевского сельского поселения  28.06.2015.\nVI. СТУПЕНЬ (Женщины возрастная группа от 18 до 29 лет) "]
["№\n п/п","Ф.И.О.","Должность.                             Место работы ","Номер участника","Возраст","Прыжок в длину с места толчком двумя ногами (см)",null,null,"Сгибание и разгибание рук в упоре лежа на полу     (кол-во раз)",null,null,"Бег на 2 км (мин, с) ",null,null,"Сумма мест","Итоговое место","прыжок"]
[null,null,null,null,null,"Рез-т","Место","Значок","Рез-т","Место","Значок","Рез-т","Место","Значок",null,null,"18-24",null,null,"25-29"]
[1," Гущина Мария Николаевна",null,1,24,189,1,"серебро",41,1,"золото",9.5399999999999991,2,"золото",4,1]
[2,"Балязина Екатерина Николаевна",null,19,18,180,2,"серебро",7,2,"нет",7.44,1,"золото",5,2]
[]
[]
[]
[]
[]
[]
[]
["Главный судья                                                                                                          С.В. Пономарев"]

{"sheet":"м 30-39","index":2,"n_rows":18,"n_cols":20,"rows_kept":18,"cut":false,"hidden":false,"merged":[[1,11,1,13],[6,16,6,18],[17,0,17,7],[1,4,2,4],[0,0,0,15],[1,0,2,0],[1,1,2,1],[1,2,2,2],[1,3,2,3],[1,5,1,7],[1,8,1,10],[6,19,6,21],[1,14,2,14],[1,15,2,15],[9,16,9,21],[10,16,10,18],[10,19,10,21],[1,16,1,21],[2,16,2,18],[2,19,2,21],[5,16,5,21]]}
["Итоговый протокол видов испытаний (тестов) и  нормативов Всероссийского физкультурно-спортивного комплекса «Готов к труду и обороне» (ГТО) cреди жителей Култаевского сельского поселения  28.06.2015.\nVII. СТУПЕНЬ (Мужчины возрастная группа от 30 до 39 лет) "]
["№\n п/п","Ф.И.О.","Должность.                             Место работы ","Номер участника","Возраст","Прыжок в длину с места толчком двумя ногами (см)",null,null," Подтягивание  из виса на высокой перекладине         (кол-во раз)",null,null,"Бег на 3 км (мин, с) ",null,null,"Сумма мест","Итоговое место","прыжок"]
[null,null,null,null,null,"Рез-т","Место","Значок","Рез-т","Место","Значок","Рез-т","Место","Значок",null,null,"30-34",null,null,"35-39"]
[1,"Гейцман Игорь Валентинович",null,6,38,265,1,"золото",7,3,"серебро",13.59,2,"серебро",6,2]
[2,"Шабунин Андрей Иванович",null,21,31,228,2,"серебро",18,1,"золото",14.07,3,"серебро",6,3]
[3,"Нафиков Азат Ахтямович",null,24,39,218,3,"серебро",14,2,"золото",9.52,1,"золото",6,1]
[]
[]
[]
[]
[]
[]
[]
[]
[]
[]
[]
["Главный судья                                                                                                          С.В. Пономарев"]

{"sheet":"ж 30-39","index":3,"n_rows":28,"n_cols":20,"rows_kept":28,"cut":false,"hidden":false,"merged":[[1,8,1,10],[6,16,6,18],[1,15,2,15],[27,0,27,7],[0,0,0,15],[1,0,2,0],[1,1,2,1],[1,2,2,2],[1,3,2,3],[1,4,2,4],[1,5,1,7],[6,19,6,21],[1,11,1,13],[1,14,2,14],[9,16,9,21],[10,16,10,18],[10,19,10,21],[1,16,1,21],[2,16,2,18],[2,19,2,21],[5,16,5,21]]}
["Итоговый протокол видов испытаний (тестов) и  нормативов Всероссийского физкультурно-спортивного комплекса «Готов к труду и обороне (ГТО) среди жителей Култаевского сельского поселения  28.06.2015.\nVII. СТУПЕНЬ (Женщины возрастная группа от 30 до 39 лет) "]
["№\n п/п","Ф.И.О.","Должность.                             Место работы ","Номер участника","Возраст","Прыжок в длину с места толчком двумя ногами (см)",null,null,"Сгибание и разгибание рук в упоре лежа на полу     (кол-во раз)",null,null,"Бег на 2 км (мин, с) ",null,null,"Сумма мест","Итоговое место","прыжок"]
[null,null,null,null,null,"Рез-т","Место","Значок","Рез-т","Место","Значок","Рез-т","Место","Значок",null,null,"30-34",null,null,"35-39"]
[1,"Ошева Ольга Владимировна","Администрация КСП",3,33,156,3,"нет",20,1,"золото",11.17,2,"золото",6,2]
[2,"Онищук Ирина Раисовна",null,12,30,220,1,"золото",14,2,"золото",10.16,1,"золото",4,1]
[3,"Волокитина Валенитина Валерьевна","Култаевская больница",13,38,173,2,"серебро",13,3,"золото",12.34,3,"серебро",8,3]
[]
[]
[]
[]
[]
[]
[]
[]
[]
[]
[]
[]
[]
[]
[]
[]
[]
[]
[]
[]
[]
["Главный судья                                                                                                          С.В. Пономарев"]

{"sheet":"м 40-49","index":4,"n_rows":16,"n_cols":18,"rows_kept":16,"cut":false,"hidden":false,"merged":[[9,16,9,17],[1,16,1,17],[5,16,5,17],[1,15,2,15],[15,0,15,7],[1,4,2,4],[1,5,1,7],[1,8,1,10],[1,11,1,13],[1,14,2,14],[0,0,0,15],[1,0,2,0],[1,1,2,1],[1,2,2,2],[1,3,2,3]]}
["Итоговый протокол видов испытаний (тестов) и  нормативов Всероссийского физкультурно-спортивного комплекса «Готов к труду и обороне» (ГТО) cреди  жителей Култаевского сельского поселения  28.06.2015.\nVIII. СТУПЕНЬ (Мужчины возрастная группа от 40 до 49 лет) "]
["№\n п/п","Ф.И.О.","Должность.                    Место работы ","Номер участника","Возраст","Поднимание туловища из положения лежа на спине (количество раз за 1 мин.)",null,null," Подтягивание  из виса на высокой перекладине         (кол-во раз)",null,null,"Бег на 2 км (мин, с) ",null,null,"Сумма мест","Итоговое место","Поднимание туловища из положения лежа на спине за 1 мин"]
[null,null,null,null,null,"Рез-т","Место","Значок","Рез-т","Место","Значок","Рез-т","Место","Значок",null,null,"40-44","45-49"]
[1,"Анкудинов Вадим Валерьевич",null,4,44,45,1,"золото",14,2,"золото",7.31,2,"золото",5,2]
[2,"Мазунин Николай Павлович",null,23,40,42,2,"золото",18,1,"золото",7.24,1,"золото",4,1]
[3,"Пикулев Александр Владимирович","Култаевская СОШ",9,41,35,3,"золото",4,3,"нет",9.4700000000000006,3,"нет",9,3]
[]
[]
[]
[]
[]
[]
[]
[]
[]
["Главный судья                                                                                                          С.В. Пономарев"]

{"sheet":"ж 40-49","index":5,"n_rows":18,"n_cols":18,"rows_kept":18,"cut":false,"hidden":false,"merged":[[1,16,1,17],[5,16,5,17],[9,16,9,17],[1,15,2,15],[17,0,17,7],[1,4,2,4],[1,5,1,7],[1,8,1,10],[1,11,1,13],[1,14,2,14],[0,0,0,15],[1,0,2,0],[1,1,2,1],[1,2,2,2],[1,3,2,3]]}
["Итоговый протокол видов испытаний (тестов) и  нормативов Всероссийского физкультурно-спортивного комплекса «Готов к труду и обороне» (ГТО) cреди жителей Култаевского сельского поселения 28.06.2015.\nVIII. СТУПЕНЬ (Женщины возрастная группа от 40 до 49 лет) "]
["№\n п/п","Ф.И.О.","Должность.                    Место работы ","Номер участника","Возраст","Поднимание туловища из положения лежа на спине (количество раз за 1 мин.)",null,null,"Сгибание и разгибание рук в упоре лежа на полу     (кол-во раз)",null,null,"Бег на 2 км (мин, с) ",null,null,"Сумма мест","Итоговое место","Поднимание туловища из положения лежа на спине за 1 мин"]
[null,null,null,null,null,"Рез-т","Место","Значок","Рез-т","Место","Значок","Рез-т","Место","Значок",null,null,"40-44","45-49"]
[1,"Жимбаева Светлана Павловна","Дом спорта",5,49,36,1,"золото",20,2,"золото",13.15,2,"золото",5,2]
[2,"Перминова Ольга Михайловна",null,15,40,35,2,"золото",22,1,"золото",10.5,1,"золото",4,1]
[]
[]
[]
[]
[]
[]
[]
[]
[]
[]
[]
[]
["Главный судья                                                                                                          С.В. Пономарев"]

{"sheet":"м 50-59","index":6,"n_rows":12,"n_cols":18,"rows_kept":12,"cut":false,"hidden":false,"merged":[[1,16,1,17],[5,16,5,17],[9,16,9,17],[1,15,2,15],[10,0,10,7],[1,4,2,4],[1,5,1,7],[1,8,1,10],[1,11,1,13],[1,14,2,14],[0,0,0,15],[1,0,2,0],[1,1,2,1],[1,2,2,2],[1,3,2,3]]}
["Итоговый протокол видов испытаний (тестов) и  нормативов Всероссийского физкультурно-спортивного комплекса «Готов к труду и обороне» (ГТО) cреди жителей Култаевского сельского поселения  28.06.2015.\n IX. СТУПЕНЬ (Мужчины возрастная группа от 50 до 59 лет) "]
["№\n п/п","Ф.И.О.","Должность.                    Место работы ","Номер участника","Возраст","Поднимание туловища из положения лежа на спине (количество раз за 1 мин.)",null,null," Подтягивание  из виса на высокой перекладине         (кол-во раз)",null,null,"Бег на 2 км (мин, с) ",null,null,"Сумма мест","Итоговое место","Поднимание туловища из положения лежа на спине за 1 мин"]
[null,null,null,null,null,"Рез-т","Место","Значок","Рез-т","Место","Значок","Рез-т","Место","Значок",null,null,"50-54","55-59"]
[1,"Гайнетдинов Хамид Инсакович",null,16,53,53,1,"золото",11,2,"золото",10.55,4,"золото",7,2]
[2,"Гладиков Михаил Семенович",null,10,58,48,2,"золото",21,1,"золото",8.39,1,"золото",4,1]
[3,"Азанов Сергей Иванович",null,17,57,44,3,"золото",7,3,"золото",9.31,2,"золото",8,3]
[4,"Иткинин Раиф Мулланурович",null,7,56,34,4,"золото",2,5,"золото",9.4,3,"золото",12,4]
[5,"Кузин Нияз Марлисович",null,2,52,25,5,"золото",4,4,"золото",10.56,5,"золото",14,5]
[]
[null,null,null,null,null,null,null,null,null,null,null,null,null,null,null,null,"2 км"]
["Главный судья                                                                                                          С.В. Пономарев",null,null,null,null,null,null,null,null,null,null,null,null,null,null,null,"50-54","55-59"]
[null,null,null,null,null,null,null,null,null,null,null,null,null,null,null,null,11,13]

{"sheet":"ж 50-59","index":7,"n_rows":12,"n_cols":18,"rows_kept":12,"cut":false,"hidden":false,"merged":[[1,16,1,17],[5,16,5,17],[9,16,9,17],[1,15,2,15],[11,0,11,7],[1,4,2,4],[1,5,1,7],[1,8,1,10],[1,11,1,13],[1,14,2,14],[0,0,0,15],[1,0,2,0],[1,1,2,1],[1,2,2,2],[1,3,2,3]]}
["Итоговый протокол видов испытаний (тестов) и  нормативов Всероссийского физкультурно-спортивного комплекса «Готов к труду и обороне» (ГТО) cреди жителей Култаевского сельского поселения  28.06.2015.\n IX. СТУПЕНЬ (Женщины возрастная группа от 50 до 59 лет) "]
["№\n п/п","Ф.И.О.","Должность.                                Место работы ","Номер участника","Возраст","Поднимание туловища из положения лежа на спине (количество раз за 1 мин.)",null,null,"Сгибание и разгибание рук в упоре лежа на полу     (кол-во раз)",null,null,"Бег на 2 км (мин, с) ",null,null,"Сумма мест","Итоговое место","Поднимание туловища из положения лежа на спине за 1 мин"]
[null,null,null,null,null,"Рез-т","Место","Значок","Рез-т","Место","Значок","Рез-т","Место","Значок",null,null,"50-54","55-59"]
[1,"Лазукова Ольга Афанасьевна","Култаевская СОШ",14,53,3,1,"нет",7,1,"нет",13.23,1,"золото",3,1]
[]
[]
[]
[]
[]
[]
[null,null,null,null,null,null,null,null,null,null,null,null,null,null,null,null,"50-54","55-59"]
["Главный судья                                                                                                          С.В. Пономарев",null,null,null,null,null,null,null,null,null,null,null,null,null,null,null,17,19]

{"sheet":"м 60-69","index":8,"n_rows":8,"n_cols":14,"rows_kept":8,"cut":false,"hidden":false,"merged":[[1,8,1,10],[1,11,2,11],[7,0,7,7],[1,12,2,12],[0,0,0,12],[1,0,2,0],[1,1,2,1],[1,2,2,2],[1,3,2,3],[1,4,2,4],[1,5,1,7]]}
["Итоговый протокол видов испытаний (тестов) и  нормативов Всероссийского физкультурно-спортивного комплекса «Готов к труду и обороне» (ГТО) cреди  жителей Култаевского сельского поселения   28.06.2015.\n X. СТУПЕНЬ (Мужчины возрастная группа от 60 до 69 лет) "]
["№\n п/п","Ф.И.О.","Должность.                    Место работы ","Номер участника","Возраст","Поднимание туловища из положения лежа на спине (количество раз за 1 мин.)",null,null,"Сгибание и разгибание рук в упоре лежа о гимнастическую скамью (кол-во раз)",null,null,"Сумма мест","Итоговое место","Поднимание туловища из положения лежа на спине "]
[null,null,null,null,null,"Рез-т","Место","Значок","Рез-т","Место","Значок",null,null,"60-69"]
[]
[]
[]
[null,null,null,null,null,null,null,null,null,null,null,null,null,"60-69"]
["Главный судья                                                                                                         С.В. Пономарев",null,null,null,null,null,null,null,null,null,null,null,null,10]

{"sheet":"ж 60-69","index":9,"n_rows":40,"n_cols":13,"rows_kept":40,"cut":false,"hidden":false,"merged":[[1,11,2,11],[1,12,2,12],[39,0,39,7],[0,0,0,12],[1,0,2,0],[1,1,2,1],[1,2,2,2],[1,3,2,3],[1,4,2,4],[1,5,1,7],[1,8,1,10]]}
["Итоговый протокол видов испытаний (тестов) и  нормативов Всероссийского физкультурно-спортивного комплекса «Готов к труду и обороне» (ГТО) cреди жителей Култаевского сельского поселения  28.06.2015.\n X. СТУПЕНЬ (Женщины возрастная группа от 60 до 69 лет) "]
["№\n п/п","Ф.И.О.","Должность.                    Место работы ","Номер участника","Возраст","Поднимание туловища из положения лежа на спине (количество раз за 1 мин.)",null,null,"Сгибание и разгибание рук в упоре лежа о гимнастическую скамью (кол-во раз)",null,null,"Сумма мест","Итоговое место"]
[null,null,null,null,null,"Рез-т","Место","Значок","Рез-т","Место","Значок"]
[1,"Каткова Василя Сайфуловна","Култаевская СОШ",25,64,28,1,"золото",15,1,"золото",2,1]
[2," "," ",null,null," "," "," "," "," "," "]
[3," "," ",null,null," "," "," "," "," "," "]
[4," "," ",null,null," "," "," "," "," "," "]
[5," "," ",null,null," "," "," "," "," "," "]
[6," "," ",null,null," "," "," "," "," "," "]
[7," "," ",null,null," "," "," "," "," "," "]
[8," "," ",null,null," "," "," "," "," "," "]
[9," "," ",null,null," "," "," "," "," "," "]
[10," "," ",null,null," "," "," "," "," "," "]
[11," "," ",null,null," "," "," "," "," "," "]
[12," "," ",null,null," "," "," "," "," "," "]
[13," "," ",null,null," "," "," "," "," "," "]
[14," "," ",null,null," "," "," "," "," "," "]
[15," "," ",null,null," "," "," "," "," "," "]
[16," "," ",null,null," "," "," "," "," "," "]
[17," "," ",null,null," "," "," "," "," "," "]
[18," "," ",null,null," "," "," "," "," "," "]
[19," "," ",null,null," "," "," "," "," "," "]
[20," "," ",null,null," "," "," "," "," "," "]
[21," "," ",null,null," "," "," "," "," "," "]
[22," "," ",null,null," "," "," "," "," "," "]
[23," "," ",null,null," "," "," "," "," "," "]
[24," "," ",null,null," "," "," "," "," "," "]
[25," "," ",null,null," "," "," "," "," "," "]
[26," "," ",null,null," "," "," "," "," "," "]
[27," "," ",null,null," "," "," "," "," "," "]
[28," "," ",null,null," "," "," "," "," "," "]
[29," "," ",null,null," "," "," "," "," "," "]
[30," "," ",null,null," "," "," "," "," "," "]
[31," "," "]
[32," "," "]
[33," "," "]
[34," "," "]
[35," "," "]
[]
["Главный судья                                                                                                          С.В. Пономарев"]

{"sheet":"м 70 и ст","index":10,"n_rows":40,"n_cols":14,"rows_kept":40,"cut":false,"hidden":false,"merged":[[1,11,2,11],[1,12,2,12],[39,0,39,7],[0,0,0,12],[1,0,2,0],[1,1,2,1],[1,2,2,2],[1,3,2,3],[1,4,2,4],[1,5,1,7],[1,8,1,10]]}
["Итоговый протокол видов испытаний (тестов) и  нормативов Всероссийского физкультурно-спортивного комплекса «Готов к труду и обороне» (ГТО) cреди депутатов Земского Собрания Пермского района, глав поселений Пермского района, муниципальных служащих администрации Пермского района и первых руководителей муниципальных учреждений Пермского муниципального района.  06.06.2015.\n XI. СТУПЕНЬ (Мужчины возрастная группа от 70 лет и старше) "]
["№\n п/п","Ф.И.О.","Должность.                    Место работы ","Номер участника","Возраст","Поднимание туловища из положения лежа на спине (количество раз за 1 мин.)",null,null,"Сгибание и разгибание рук в упоре лежа о сиденье стула (кол-во раз)",null,null,"Сумма мест","Итоговое место","Поднимание туловища из положения лежа на спине "]
[null,null,null,null,null,"Рез-т","Место","Значок","Рез-т","Место","Значок",null,null,"70 и старше"]
[1," "," ",null,null," "," "," "," "," "," ",{"$f":"SUM(G4,J4, )","v":0},1,15]
[2," "," ",null,null," "," "," "," "," "," ",{"$f":"SUM(G5,J5, )","v":0},2]
[3," "," ",null,null," "," "," "," "," "," ",0,3,"отжимания"]
[4," "," ",null,null," "," "," "," "," "," ",0,4,"70 и старше"]
[5," "," ",null,null," "," "," "," "," "," ",0,5,8]
[6," "," ",null,null," "," "," "," "," "," ",0,6]
[7," "," ",null,null," "," "," "," "," "," ",0,7]
[8," "," ",null,null," "," "," "," "," "," ",0,8]
[9," "," ",null,null," "," "," "," "," "," ",0,9]
[10," "," ",null,null," "," "," "," "," "," ",0,10]
[11," "," ",null,null," "," "," "," "," "," ",0,11]
[12," "," ",null,null," "," "," "," "," "," ",0,12]
[13," "," ",null,null," "," "," "," "," "," ",0,13]
[14," "," ",null,null," "," "," "," "," "," ",0,14]
[15," "," ",null,null," "," "," "," "," "," ",0,15]
[16," "," ",null,null," "," "," "," "," "," ",0,16]
[17," "," ",null,null," "," "," "," "," "," ",0,17]
[18," "," ",null,null," "," "," "," "," "," ",0,18]
[19," "," ",null,null," "," "," "," "," "," ",0,19]
[20," "," ",null,null," "," "," "," "," "," ",0,20]
[21," "," ",null,null," "," "," "," "," "," ",0,21]
[22," "," ",null,null," "," "," "," "," "," ",0,22]
[23," "," ",null,null," "," "," "," "," "," ",0,23]
[24," "," ",null,null," "," "," "," "," "," ",0,24]
[25," "," ",null,null," "," "," "," "," "," ",0,25]
[26," "," ",null,null," "," "," "," "," "," ",0,26]
[27," "," ",null,null," "," "," "," "," "," ",0,27]
[28," "," ",null,null," "," "," "," "," "," ",0,28]
[29," "," ",null,null," "," "," "," "," "," ",0,29]
[30," "," ",null,null," "," "," "," "," "," ",0,30]
[31," "," ",null,null,168,31,"серебр",7.55,31,"золот",62,31]
[32," "," ",null,null,170,32,"золот",8.02,32,"серебр",64,32]
[33," "," ",null,null,160,33,"золот",8.1,33,"серебр",66,33]
[34," "," ",null,null,160,34,"золот",7.44,34,"серебр",68,34]
[35," "," ",null,null,140,35,"золот",9,35,"серебр",70,35]
[]
["Главный судья                                                                                                          А.Г. Катаев"]

{"sheet":"ж 70 и ст","index":11,"n_rows":40,"n_cols":14,"rows_kept":40,"cut":false,"hidden":false,"merged":[[1,11,2,11],[1,12,2,12],[39,0,39,7],[0,0,0,12],[1,0,2,0],[1,1,2,1],[1,2,2,2],[1,3,2,3],[1,4,2,4],[1,5,1,7],[1,8,1,10]]}
["Итоговый протокол видов испытаний (тестов) и  нормативов Всероссийского физкультурно-спортивного комплекса «Готов к труду и обороне» (ГТО) cреди депутатов Земского Собрания Пермского района, глав поселений Пермского района, муниципальных служащих администрации Пермского района и первых руководителей муниципальных учреждений Пермского муниципального района.  06.06.2015.\n XI. СТУПЕНЬ (Женщины возрастная группа от 70 лет и старше) "]
["№\n п/п","Ф.И.О.","Должность.                    Место работы ","Номер участника","Возраст","Поднимание туловища из положения лежа на спине (количество раз за 1 мин.)",null,null,"Сгибание и разгибание рук в упоре лежа о сиденье стула (кол-во раз)",null,null,"Сумма мест","Итоговое место","Поднимание туловища из положения лежа на спине "]
[null,null,null,null,null,"Рез-т","Место","Значок","Рез-т","Место","Значок",null,null,"70 и старше"]
[1," "," ",null,null," "," "," "," "," "," ",{"$f":"SUM(G4,J4, )","v":0},1,10]
[2," "," ",null,null," "," "," "," "," "," ",{"$f":"SUM(G5,J5, )","v":0},2]
[3," "," ",null,null," "," "," "," "," "," ",0,3,"отжимания"]
[4," "," ",null,null," "," "," "," "," "," ",0,4,"70 и старше"]
[5," "," ",null,null," "," "," "," "," "," ",0,5,5]
[6," "," ",null,null," "," "," "," "," "," ",0,6]
[7," "," ",null,null," "," "," "," "," "," ",0,7]
[8," "," ",null,null," "," "," "," "," "," ",0,8]
[9," "," ",null,null," "," "," "," "," "," ",0,9]
[10," "," ",null,null," "," "," "," "," "," ",0,10]
[11," "," ",null,null," "," "," "," "," "," ",0,11]
[12," "," ",null,null," "," "," "," "," "," ",0,12]
[13," "," ",null,null," "," "," "," "," "," ",0,13]
[14," "," ",null,null," "," "," "," "," "," ",0,14]
[15," "," ",null,null," "," "," "," "," "," ",0,15]
[16," "," ",null,null," "," "," "," "," "," ",0,16]
[17," "," ",null,null," "," "," "," "," "," ",0,17]
[18," "," ",null,null," "," "," "," "," "," ",0,18]
[19," "," ",null,null," "," "," "," "," "," ",0,19]
[20," "," ",null,null," "," "," "," "," "," ",0,20]
[21," "," ",null,null," "," "," "," "," "," ",0,21]
[22," "," ",null,null," "," "," "," "," "," ",0,22]
[23," "," ",null,null," "," "," "," "," "," ",0,23]
[24," "," ",null,null," "," "," "," "," "," ",0,24]
[25," "," ",null,null," "," "," "," "," "," ",0,25]
[26," "," ",null,null," "," "," "," "," "," ",0,26]
[27," "," ",null,null," "," "," "," "," "," ",0,27]
[28," "," ",null,null," "," "," "," "," "," ",0,28]
[29," "," ",null,null," "," "," "," "," "," ",0,29]
[30," "," ",null,null," "," "," "," "," "," ",0,30]
[31," "," ",null,null,168,31,"серебр",7.55,31,"золот",62,31]
[32," "," ",null,null,170,32,"золот",8.02,32,"серебр",64,32]
[33," "," ",null,null,160,33,"золот",8.1,33,"серебр",66,33]
[34," "," ",null,null,160,34,"золот",7.44,34,"серебр",68,34]
[35," "," ",null,null,140,35,"золот",9,35,"серебр",70,35]
[]
["Главный судья                                                                                                          А.Г. Катаев"]